Cogmind - Beta 17.1 @@@ ROGUE MODE // 2026.09.14 @ 15:46:36 Player: Somberlain Result: Destroyed by P-60 Hacker with Shock Rifle Performance ------------- Evolutions (3) 1500 Regions Visited (10) 2000 Robots Destroyed (69) 345 Value Destroyed (4539) 4539 Prototype IDs (9) 180 Alien Tech Used (0) 0 Bonus (2846) 2846 TOTAL SCORE: 11410 Bonus ------- High Alert Combat Kills 290 Follower Combat Kills 2367 Entered Garrisons 600 Used RIF Installer 1500 Friendly Fire -1911 Cogmind --------- Core Integrity 0/700 Matter 261/300 Energy 20/100 System Corruption 85% Temperature Cool (0) Movement Treading (160) Location -7/Garrison Parts ------- > --- POWER (2) -------- (None) > --- PROPULSION (2) --- Enhanced Armored Medium Treads Enhanced Armored Medium Treads > --- UTILITY (7) ------ Improved Cooling System > --- WEAPON (2) ------- Gatling Laser > --- INVENTORY (5) ---- Improved Particle Charger Hacking Suite Relay Coupler [Grunt] (35) Relay Coupler [Sentry] (33) Relay Coupler [Demolisher] (30) Peak State ------------ > --- POWER ------------ Micro Nuclear Core Micro Fission Core > --- PROPULSION ------- Enhanced Armored Heavy Treads > --- UTILITY ---------- Coolant Injector Large Storage Unit Experimental Energy Well Improved Signal Interpreter Relay Coupler [C] Relay Coupler [C] Relay Coupler [Sentry] > --- WEAPON ----------- Precision Phase Gun Experimental Remote Datajack > --- INVENTORY -------- Enhanced Armored Medium Treads Enhanced Armored Medium Treads Experimental Coolant Injector Huge Storage Unit Improved Weapon Cycler Advanced Powered Armor Advanced Remote Force Field Relay Coupler [C] Relay Coupler [Sentry] Relay Coupler [Sentry] Relay Coupler [Demolisher] Relay Coupler [Hunter] Relay Coupler [Behemoth] Improved Field Recycling Unit Precision Phase Gun [Rating: 95] Favorites ----------- Power Micro Fission Core Engine Improved Deuterium Engine Power Core Micro Fission Core Reactor Light Antimatter Reactor Propulsion Enhanced Armored Heavy Treads Treads Enhanced Armored Heavy Treads Leg Aluminum Leg Wheel Wheel Utility Relay Coupler [Grunt] Device Improved Heat Sink Storage Large Storage Unit Processor Improved Signal Interpreter Hackware Relay Coupler [Grunt] Protection Improved Light Armor Plating Weapon Precision Phase Gun Energy Gun Precision Phase Gun Ballistic Gun Heavy Battle Rifle Launcher Grenade Launcher Special Weapon Experimental Remote Datajack Impact Weapon Mace Special Melee Weapon Datajack Build | -11 -10 -10 -9 -9 -9 -9 -7 -7 -7 -7 ------- Run | Yrd Mat Min Mat Sto Gar Rec Fac Gar Fac Gar Slots Evolved 6 | . . . 2 . . . 4 . . . Power 1 | . . . . . . . 1 . . . Propulsion . | . . . . . . . . . . . Utility 5 | . . . 2 . . . 3 . . . Weapon . | . . . . . . . . . . . Parts Attached 98 | 7 2 4 10 1 14 2 21 14 13 10 Power 13 | 1 . . 1 . 1 . 5 1 1 3 Engine 6 | 1 . . . . . . 1 1 1 2 Core 6 | . . . 1 . . . 4 . . 1 Reactor 1 | . . . . . 1 . . . . . Propulsion 14 | 3 . . 4 . 5 . . . . 2 Treads 6 | . . . 2 . 2 . . . . 2 Leg 6 | 1 . . 2 . 3 . . . . . Wheel 2 | 2 . . . . . . . . . . Hover . | . . . . . . . . . . . Flight . | . . . . . . . . . . . Utility 55 | 1 1 3 5 1 3 . 15 12 11 3 Device 17 | . 1 2 2 . . . 6 2 3 1 Storage 7 | 1 . 1 1 . . . 4 . . . Processor 4 | . . . 1 . 1 . 2 . . . Hackware 22 | . . . . . 2 . 3 9 7 1 Protection 5 | . . . 1 1 . . . 1 1 1 Artifact . | . . . . . . . . . . . Weapon 16 | 2 1 1 . . 5 2 1 1 1 2 Energy Gun 9 | 1 . . . . 4 2 . . . 2 Energy Cannon . | . . . . . . . . . . . Ballistic Gun 2 | 1 . 1 . . . . . . . . Ballistic Cannon . | . . . . . . . . . . . Launcher 1 | . 1 . . . . . . . . . Special Weapon 2 | . . . . . . . 1 . 1 . Impact Weapon 1 | . . . . . . . . 1 . . Slashing Weapon . | . . . . . . . . . . . Piercing Weapon . | . . . . . . . . . . . Special Melee Weapon 1 | . . . . . 1 . . . . . Unidentified Prototypes . | . . . . . . . . . . . Corrupted Parts 8 | . . . . . 1 2 2 . . 3 System Corruption 42 | . . . . . 7 3 10 . . 22 Parts Lost 33 | . . . 1 1 1 2 5 2 5 16 Power 7 | . . . . . . . 2 . . 5 Propulsion 2 | . . . 1 . . . . . . 1 Utility 17 | . . . . 1 1 . 3 2 2 8 Weapon 7 | . . . . . . 2 . . 3 2 Highest Loss Streak 16 | . . . 1 1 1 2 2 2 3 16 To Critical Strikes 3 | . . . . . . . . . . 3 Average Backups 14 | . 1 5 8 10 12 14 14 17 23 18 Power . | . . . . . . . . . 1 2 Propulsion 1 | . . . . 2 1 2 2 . 2 1 Utility 11 | . . 3 5 5 8 10 11 14 17 14 Weapon 1 | . . 1 2 2 . 1 . 1 1 . Tool/Special . | . . . . . . . . . . . Unused Backups 32 | . . . . . 17 . . 5 . 10 Power 2 | . . . . . 2 . . . . . Propulsion 3 | . . . . . 3 . . . . . Utility 23 | . . . . . 12 . . 1 . 10 Weapon 4 | . . . . . . . . 4 . . Tool/Special . | . . . . . . . . . . . Average Slot Usage (%) 87 | . 89 85 96 97 95 87 79 90 87 77 Engine 2 | . 14 . . . . . . 6 7 6 Core 5 | . . . 8 11 . . 9 8 7 6 Reactor 3 | . . . . . 10 11 1 . . . Treads 6 | . . . 4 22 4 11 7 7 7 7 Leg 3 | . . . 13 . 15 . . . . . Wheel 1 | . 28 28 4 . . . . . . . Device 11 | . 3 14 16 11 18 11 15 6 1 5 Storage 12 | . 14 14 11 11 11 11 11 15 15 14 Processor 5 | . . . 10 11 2 11 8 7 1 . Hackware 12 | . . . . . 6 11 9 16 29 18 Protection 2 | . . . 5 8 3 . . 6 1 3 Energy Gun 11 | . 5 14 11 11 21 21 10 4 3 . Ballistic Gun 1 | . 14 14 11 11 . . . . . . Special Weapon 2 | . . . . . . . 1 7 7 5 Peak Build Rating 95 | 6 8 12 22 22 54 65 93 95 94 79 Average Rating 62 | 4 6 10 20 21 35 56 74 86 82 68 On Entrance 39 | . 6 6 12 22 21 54 65 93 85 71 Avg Prop Armor Cover (%) 5 | . . . 5 . . . . . . . Naked Turns . | . . . . . . . . . . . Heaviest Build 109 | 13 16 26 38 38 45 45 104 109 109 108 Greatest Support 80 | 20 20 20 43 43 80 80 80 80 80 80 Greatest Overweight (x) 3 | . . 1 3 . 2 . 1 1 1 2 Average Overweight (x) . | . . . . . . . . . 1 . Largest Inventory Capacity 25 | 8 8 15 15 15 15 15 25 25 25 25 Average Capacity 17 | 7 8 13 15 15 15 15 15 20 25 24 Most Carried 25 | . 3 11 15 15 15 15 23 23 25 21 Average Carried 15 | . 1 8 13 14 13 14 14 17 23 18 Final Capacity 25 | 8 8 15 15 15 15 15 25 25 25 5 Final Carried 23 | . 3 11 15 15 15 14 23 23 20 5 Class Distribution -------------------- 79% | Bothacker-Mutant 13% | Scavenger-Mutant 7% | Mutant Dominant Class ---------------- Mutant | -10/Materials Mutant | -10/Mines Scavenger-Mutant | -9/Materials Mutant | -9/Storage Bothacker-Mutant | -9/Garrison Bothacker-Mutant | -9/Recycling Bothacker-Mutant | -7/Factory Bothacker-Mutant | -7/Garrison Bothacker-Mutant | -7/Factory Bothacker-Mutant | -7/Garrison Resources | -11 -10 -10 -9 -9 -9 -9 -7 -7 -7 -7 ----------- Run | Yrd Mat Min Mat Sto Gar Rec Fac Gar Fac Gar Matter Collected 2482 | 187 20 241 164 20 211 58 368 616 507 90 Remotely . | . . . . . . . . . . . Salvage Created 3574 | . 46 224 270 83 747 503 1054 321 252 74 Parts 155 | . 2 12 9 3 36 18 50 10 14 1 Haulers Intercepted 1 | . . . 1 . . . . . . . Recyclers Shooed 2 | . . . 1 . . . 1 . . . Parts Field Recycled . | . . . . . . . . . . . Retrieved Matter . | . . . . . . . . . . . Parts Self-Destructed . | . . . . . . . . . . . Prevented . | . . . . . . . . . . . Parts Restored . | . . . . . . . . . . . Kills | -11 -10 -10 -9 -9 -9 -9 -7 -7 -7 -7 ------- Run | Yrd Mat Min Mat Sto Gar Rec Fac Gar Fac Gar Combat Hostiles Destroyed 53 | . 2 5 3 2 11 2 19 4 3 2 Melee 1 | . . . . . . . 1 . . . Guns 46 | . . 5 3 2 11 2 17 4 1 1 AOE 2 | . 2 . . . . . . . . . Classes Destroyed 13 | . 1 2 3 . 1 1 5 . . . Worker 1 | . . . . . . . 1 . . . Tunneler 2 | . . 1 . . . . 1 . . . Hauler 1 | . . . 1 . . . . . . . Recycler 7 | . . . 1 . . 3 2 . 1 . Watcher 2 | . . . . . . . 1 1 . . Swarmer 6 | . . 1 . . . . 4 . . 1 Grunt 25 | . 2 4 3 1 6 . 4 4 1 . Brawler 3 | . . . . . . . 1 . 1 1 Duelist 1 | . . . . . . 1 . . . . Protector 1 | . . . . . . . 1 . . . Sentry 6 | . . . 1 1 3 . . 1 . . Hunter 2 | . . . . . . . 2 . . . Programmer 11 | . . . . . 2 1 7 . 1 . Best Kill Streak 5 | . 2 3 2 2 5 3 3 1 1 1 Combat Bots Only 5 | . 2 2 2 2 5 2 3 1 1 1 Max Kills in Single Turn 1 | . 1 1 1 1 1 1 1 1 1 1 Gunslinging . | . . . . . . . . . . . Exploded 1 | . 1 . . . . . . . . . Melee 1 | . . . . . . . 1 . . . Uniques/NPCs Destroyed 1 | . . . . . 1 . . . . . AZ-K3N (-9/Garrison) Combat | -11 -10 -10 -9 -9 -9 -9 -7 -7 -7 -7 -------- Run | Yrd Mat Min Mat Sto Gar Rec Fac Gar Fac Gar Hostile Shots Fired 571 | . 6 29 32 14 62 19 103 40 98 168 Missed 177 | . 3 11 8 4 27 7 18 13 28 58 Hits 394 | . 3 18 24 10 35 12 85 27 70 110 Melee 40 | . . . . . . 2 5 . 4 29 Projectile 354 | . 3 18 24 10 35 10 80 27 66 81 AOE 1 | . . . . . . . . . . 1 Critical Strikes 23 | . . . . 1 1 1 7 1 3 9 Damage Taken 5965 | . 49 227 319 177 570 220 1245 251 721 2186 Core 976 | . 11 58 62 29 99 15 244 27 104 327 Absorbed by Shields 541 | . . . . . 25 . 282 126 108 . Reduced by Siege Mode 68 | . . . . . . . 68 . . . Core Remaining (%) 73 | 100 . 72 . . . 48 . . . . Volleys Fired 410 | . 4 18 22 5 76 28 111 82 43 21 Largest 2 | . 2 2 2 2 2 2 2 1 1 1 Hottest 188 | . 50 73 73 73 100 188 188 94 94 80 Shots Fired 568 | . 7 36 42 10 152 50 127 83 43 18 Gun 494 | . 4 36 42 10 152 50 116 62 8 14 Cannon . | . . . . . . . . . . . Launcher 3 | . 3 . . . . . . . . . Special 71 | . . . . . . . 11 21 35 4 Kinetic 49 | . 4 18 22 5 . . . . . . Thermal 301 | . . 18 20 5 30 28 116 62 8 14 Explosive 3 | . 3 . . . . . . . . . Electromagnetic 144 | . . . . . 122 22 . . . . Robot Hit Streak 32 | . 2 13 6 5 28 13 32 19 12 8 Robot Miss Streak 6 | . 1 5 4 2 3 2 2 1 1 6 Penetration Max . | . . . . . . . . . . . Secondary Targets 4 | . . 1 . . 2 . 1 . . . Max Gunslinging Chain 1 | . . 1 . . 1 . 1 . . . Shots Hit Robots 381 | . 4 23 25 7 80 37 108 43 37 17 Core Hits 126 | . 3 12 9 4 29 13 33 10 3 10 Critical Kills . | . . . . . . . . . . . Critical Parts Destroyed 1 | . . . . . . . . . . 1 Critical Strikes 24 | . . . . . 2 3 14 4 . 1 Burn 22 | . . . . . 1 3 14 4 . . Corrupt 1 | . . . . . 1 . . . . . Smash 1 | . . . . . . . . . . 1 Melee Attacks 14 | . . . . . 3 . . 4 3 4 Impact 11 | . . . . . . . . 4 3 4 Slashing . | . . . . . . . . . . . Piercing . | . . . . . . . . . . . Sneak Attacks 1 | . . . . . 1 . . . . . Combat Hostiles . | . . . . . . . . . . . Follow-up Attacks . | . . . . . . . . . . . Damage Inflicted 7233 | . 201 297 401 100 969 762 3063 741 288 411 Guns 6820 | . 29 297 401 100 868 762 3012 741 253 357 Cannons . | . . . . . . . . . . . Explosions 258 | . 157 . . . 101 . . . . . Melee 63 | . . . . . . . . . 26 37 Ramming 92 | . 15 . . . . . 51 . 9 17 Kinetic 488 | . 29 156 247 56 . . . . . . Thermal 5789 | . . 141 154 44 471 616 3012 741 253 357 Explosive 157 | . 157 . . . . . . . . . Electromagnetic 644 | . . . . . 498 146 . . . . Impact 63 | . . . . . . . . . 26 37 Slashing . | . . . . . . . . . . . Piercing . | . . . . . . . . . . . Highest Corruption 85 | . 2 2 . . 9 13 23 18 19 85 Average Corruption 11 | . 2 2 . . 2 9 9 18 12 28 Corruption Purged 15 | . . . . . . . 5 . 10 . Corruption Blocked 8 | . . . . . . . 8 . . . Effects 396 | . 2 8 . . 40 51 77 138 52 28 Message Errors 102 | . . 1 . . 11 11 21 39 13 6 Matter Fused 83 | . 1 1 . . 7 8 21 31 12 2 Heat Flow Errors 42 | . . 1 . . 8 7 6 16 3 1 Energy Discharges 55 | . . 2 . . 5 9 8 15 10 6 Parts Rejected 3 | . . . . . . . . . 1 2 Parts Fused 7 | . 1 1 . . 1 1 . 2 . 1 Data Loss (minor) 58 | . . 1 . . 4 7 10 23 11 2 Data Loss (major) 15 | . . 1 . . 2 2 2 6 1 1 Misfires 9 | . . . . . 1 4 3 1 . . Alerts 9 | . . . . . 1 2 2 3 . 1 Misdirections 7 | . . . . . . . 1 2 1 3 Weapon Failures 6 | . . . . . . . 3 . . 3 Overload Shots . | . . . . . . . . . . . Overflow Damage 19 | . . . . . . . . . . 19 Projectiles . | . . . . . . . . . . . Explosions . | . . . . . . . . . . . Melee 19 | . . . . . . . . . . 19 Knockbacks . | . . . . . . . . . . . Impact . | . . . . . . . . . . . Kinetic . | . . . . . . . . . . . Secondary . | . . . . . . . . . . . Self-Inflicted Damage 65 | . 15 . . . 50 . . . . . Shots 1 | . . . . . 1 . . . . . Rammed 18 | . . . . . . . 11 . 2 5 Targets Rammed 18 | . . . . . . . 11 . 2 5 Kicked . | . . . . . . . . . . . Crushed . | . . . . . . . . . . . Highest Temperature 390 | . 2 63 1 16 286 261 342 390 192 245 Average Temperature 87 | . 2 14 1 5 46 105 115 88 59 78 Received Heat Transfer 1051 | . 18 117 156 63 129 . 216 139 195 18 Effects 6 | . . . . . . . 1 5 . . Shutdowns 1 | . . . . . . . . 1 . . Energy Bleed 3 | . . . . . . . 1 2 . . Interference 2 | . . . . . . . . 2 . . Siege Activations 6 | . . . . . 1 . 5 . . . Total Turns 184 | . . . . . 5 . 179 . . . Longest Duration 101 | . . . . . 5 . 101 . . . Martial Activations . | . . . . . . . . . . . Shielding Activations . | . . . . . . . . . . . Robots Disrupted . | . . . . . . . . . . . Combat Hostiles . | . . . . . . . . . . . Robots Corrupted 3 | . . . . . 1 . . . 1 1 Combat Hostiles 2 | . . . . . . . . . 1 1 Parts Fried 6 | . . . . . 5 . . . . 1 Impact Corruptions 2 | . . . . . . . . . 1 1 Robots Melted 2 | . . . . . . . 1 . 1 . Combat Hostiles 2 | . . . . . . . 1 . 1 . Parts Melted 18 | . . . 1 . 2 . 14 . 1 . Heat Transferred 9415 | . . 325 350 100 787 999 4561 1240 278 775 Parts Sabotaged . | . . . . . . . . . . . Parts Stolen . | . . . . . . . . . . . Parts Stripped . | . . . . . . . . . . . Power Chain Reactions 2 | . . . . . 2 . . . . . Alert | -11 -10 -10 -9 -9 -9 -9 -7 -7 -7 -7 ------- Run | Yrd Mat Min Mat Sto Gar Rec Fac Gar Fac Gar Maximum Alert Level 5 | . . . . . 5 3 2 5 4 3 Low Security (%) 20 | 100 100 100 100 100 16 . 32 . . . Level 1 23 | . . . . . 13 43 61 11 . . Level 2 9 | . . . . . 9 31 5 12 . . Level 3 15 | . . . . . 28 24 . 13 7 100 Level 4 21 | . . . . . 21 . . 32 92 . Level 5 9 | . . . . . 11 . . 30 . . High Security . | . . . . . . . . . . . Max Security . | . . . . . . . . . . . Peak Influence 2288 | . 47 86 40 50 1869 840 464 2288 1260 937 Initial 1201 | . . 2 . . 13 840 402 250 1201 830 Average 728 | . 19 29 8 22 852 513 249 1249 1167 867 Influence Increases 7004 | . 57 201 129 70 1926 146 1078 2238 957 202 Destroy 0b10 Robot/C 2620 | . 40 140 80 40 680 80 440 500 500 120 Destroy 0b10 Robot/NC 140 | . . 5 15 . 5 35 30 15 35 . Destroy Leader 384 | . . 30 22 20 40 . 134 20 108 10 Allied During Kill 415 | . . 11 2 . 71 6 23 101 194 7 Trap Triggered on 0b10 10 | . . . . 10 . . . . . . Successful Hack 107 | . . . 8 . 35 21 7 21 15 . Disable Machine 90 | . . . . . 15 . 15 . 60 . Anti-Garrison Action 2300 | . . . . . 950 . . 1300 . 50 Destroy Structure 368 | . 17 . 2 . 130 4 9 176 30 . Advance Influence 300 | . . . . . . . 300 . . . Lose Combat Pursuer 270 | . . 15 . . . . 120 105 15 15 Influence Decreases 6192 | . 50 208 129 50 77 1769 966 308 2059 576 Entered New Map 2736 | . . 5 . . 7 1029 144 108 1087 356 Time Decay 2111 | . 50 203 104 40 . 510 702 . 502 . Lost Part 330 | . . . 10 10 10 20 50 20 50 160 Lost Ally 715 | . . . 15 . 60 60 70 180 270 60 Purge Threat 300 | . . . . . . 150 . . 150 . Squads Dispatched 18 | . . . 1 . . . 6 . 11 . Investigation . | . . . . . . . . . . . Extermination 7 | . . . . . . . 5 . 2 . Reinforcement 5 | . . . 1 . . . 1 . 3 . Assault 4 | . . . . . . . . . 4 . Garrison 2 | . . . . . . . . . 2 . Intercept . | . . . . . . . . . . . Searches Triggered . | . . . . . . . . . . . Construction Impeded . | . . . . . . . . . . . Haulers Reinforced 1 | . . . . . . . 1 . . . Active Scanning Responses . | . . . . . . . . . . . Cargo Convoy Interrupts 1 | . . . . . . . 1 . . . Stealth | -11 -10 -10 -9 -9 -9 -9 -7 -7 -7 -7 --------- Run | Yrd Mat Min Mat Sto Gar Rec Fac Gar Fac Gar Distress Signals 12 | . . . 2 . . . 5 3 2 . Communications Jammed . | . . . . . . . . . . . Distress Signals . | . . . . . . . . . . . Times Spotted 194 | . 3 7 12 4 32 4 36 36 45 15 Peak Tracking Total 9 | . 2 3 4 3 4 2 9 6 7 7 Tactical Retreats 11 | . . 1 . . . . 5 3 1 1 Traps | -11 -10 -10 -9 -9 -9 -9 -7 -7 -7 -7 ------- Run | Yrd Mat Min Mat Sto Gar Rec Fac Gar Fac Gar Traps Triggered 14 | . 1 . . . 6 . 3 1 . 3 Indirectly . | . . . . . . . . . . . Trap Hack Attempts . | . . . . . . . . . . . Triggered . | . . . . . . . . . . . Disarmed . | . . . . . . . . . . . Reprogrammed . | . . . . . . . . . . . Reused 1 | . . . . 1 . . . . . . Traps Extracted . | . . . . . . . . . . . Installed 1 | . . . . 1 . . . . . . Triggered 1 | . . . . 1 . . . . . . Most Traps Carried 5 | . . 5 5 5 4 . . . . . Machines | -11 -10 -10 -9 -9 -9 -9 -7 -7 -7 -7 ---------- Run | Yrd Mat Min Mat Sto Gar Rec Fac Gar Fac Gar Machines Disabled 17 | . . . . . 7 . 1 4 4 1 Max in Single Turn 1 | . . . . . 1 . 1 1 . 1 Garrison Relay 10 | . . . . . 5 . . 4 . 1 Machines Repaired . | . . . . . . . . . . . Machines Dismantled . | . . . . . . . . . . . Machines Sabotaged . | . . . . . . . . . . . Overloaded Fab Kills . | . . . . . . . . . . . Hacking | -11 -10 -10 -9 -9 -9 -9 -7 -7 -7 -7 --------- Run | Yrd Mat Min Mat Sto Gar Rec Fac Gar Fac Gar Machines Accessed 32 | . 1 . 1 1 4 9 8 3 5 . Terminals 22 | . 1 . 1 . 4 5 6 3 2 . Fabricators . | . . . . . . . . . . . Repair Stations 2 | . . . . . . . . . 2 . Recycling Units 5 | . . . . . . 4 1 . . . Scanalyzers . | . . . . . . . . . . . Garrison Access 3 | . . . . 1 . . 1 . 1 . Total Hacks 80 | . 2 . 2 1 11 29 16 9 10 . Successful 22 | . . . 1 1 3 9 3 2 3 . Failed 57 | . 2 . 1 . 8 19 13 7 7 . Catastrophic 18 | . . . 1 . . 4 6 3 4 . Database Lockouts 1 | . . . . . . 1 . . . . Manual 37 | . 2 . 2 . . 16 11 . 6 . Terminals 61 | . 2 . 2 . 11 19 12 9 6 . Fabricators . | . . . . . . . . . . . Repair Stations 3 | . . . . . . . . . 3 . Recycling Units 13 | . . . . . . 10 3 . . . Scanalyzers . | . . . . . . . . . . . Garrison Access 3 | . . . . 1 . . 1 . 1 . Terminal Hacks 15 | . . . 1 . 3 6 1 2 2 . Robot Analysis 6 | . . . . . . 3 1 . 2 . Open Door 2 | . . . . . 1 . . 1 . . Branch Access Points 1 | . . . 1 . . . . . . . Emergency Access Points 3 | . . . . . 1 1 . 1 . . Alert Level 1 | . . . . . . 1 . . . . Unreport Threat 1 | . . . . . . 1 . . . . Garrison Registry 1 | . . . . . 1 . . . . . Fabricator Hacks . | . . . . . . . . . . . Repair Station Hacks . | . . . . . . . . . . . Recycling Unit Hacks 4 | . . . . . . 3 1 . . . Retrieve Components 4 | . . . . . . 3 1 . . . Scanalyzer . | . . . . . . . . . . . Garrison Access Hacks 3 | . . . . 1 . . 1 . 1 . Unlock Access 3 | . . . . 1 . . 1 . 1 . Unauthorized Hacks . | . . . . . . . . . . . Terminals . | . . . . . . . . . . . Fabricators . | . . . . . . . . . . . Repair Stations . | . . . . . . . . . . . Recycling Units . | . . . . . . . . . . . Scanalyzers . | . . . . . . . . . . . Garrison Access . | . . . . . . . . . . . Data Cores Recovered 2 | . . . 1 . . . . . 1 . Used . | . . . . . . . . . . . Hacking Detections 29 | . 1 . 1 . 2 9 8 3 5 . Full Trace Events 10 | . . . . . 2 6 . 2 . . Feedback Events 1 | . . . . . 1 . . . . . Corruption 1 | . . . . . 1 . . . . . Feedback Blocked . | . . . . . . . . . . . Robot Schematics Acquired . | . . . . . . . . . . . Robots Built . | . . . . . . . . . . . Authchips . | . . . . . . . . . . . Time . | . . . . . . . . . . . Total Robot Build Rating . | . . . . . . . . . . . Part Schematics Acquired . | . . . . . . . . . . . Parts Built . | . . . . . . . . . . . Authchips . | . . . . . . . . . . . Time . | . . . . . . . . . . . Total Part Build Rating . | . . . . . . . . . . . Part Studies Acquired . | . . . . . . . . . . . Parts Repaired . | . . . . . . . . . . . Time . | . . . . . . . . . . . Parts Recycled . | . . . . . . . . . . . Recycled Matter . | . . . . . . . . . . . Retrieved Matter . | . . . . . . . . . . . Retrieved Components 3 | . . . . . . 3 . . . . Parts Scanalyzed . | . . . . . . . . . . . Part Schematics Acquired . | . . . . . . . . . . . Parts Damaged . | . . . . . . . . . . . Bothacking | -11 -10 -10 -9 -9 -9 -9 -7 -7 -7 -7 ------------ Run | Yrd Mat Min Mat Sto Gar Rec Fac Gar Fac Gar Used RIF Installer 3 | . . . . . 1 . . 1 . 1 Coupler Efficiency 2 | . . . . . . . . 1 . 1 Robots Hacked 47 | . . . . . 2 . 6 16 21 2 Non-combat 7 | . . . . . . . 1 . 6 . Combat 40 | . . . . . 2 . 5 16 15 2 Robot Hacks Applied 51 | . . . . . 2 . 6 17 24 2 parse_system 2 | . . . . . 1 . 1 . . . purge_threat 1 | . . . . . . . . . 1 . disarm_traps 1 | . . . . . . . . . 1 . block_reporting 1 | . . . . . . . . . 1 . find_garrison 1 | . . . . . . . . . 1 . link_fov 2 | . . . . . . . . . 2 . scatter_targeting 3 | . . . . . . . . 1 2 . spike_heat 7 | . . . . . . . 1 2 4 . overload_power 1 | . . . . . . . . 1 . . reboot_system 1 | . . . . . . . . 1 . . overwrite_iff 4 | . . . . . . . 1 1 2 . streamctrl_high 4 | . . . . . 1 . . 2 1 . formatsys_high 23 | . . . . . . . 3 9 9 2 Relay Couplers Released 48 | . . . . . 22 . 8 15 . 3 Machine Destruction 37 | . . . . . 19 . . 15 . 3 Programmers 11 | . . . . . 3 . 8 . . . Attached 20 | . . . . . 2 . 2 9 6 1 Fabnet Peak Effective % . | . . . . . . . . . . . Robots Rewired 10 | . . . . . 5 5 . . . . Allies Hacked . | . . . . . . . . . . . Hacks Repelled . | . . . . . . . . . . . Allies | -11 -10 -10 -9 -9 -9 -9 -7 -7 -7 -7 -------- Run | Yrd Mat Min Mat Sto Gar Rec Fac Gar Fac Gar Total Allies 48 | . . 3 . . 7 5 4 15 12 2 Largest Group 6 | . . 3 3 . 4 5 5 6 6 2 Highest-Rated Group 278 | . . 40 40 . 227 81 71 278 266 64 Highest-Rated Ally 178 | . . 16 16 . 178 31 32 95 95 32 Total Orders 7 | . . . . . 2 . . 5 . . STAY 2 | . . . . . 1 . . 1 . . ROAM 2 | . . . . . . . . 2 . . FOLLOW 3 | . . . . . 1 . . 2 . . Ally Attacks 273 | . . 5 25 . 34 10 11 71 111 6 Total Damage 8539 | . . 63 260 . 1739 210 175 2138 3700 254 Kills 89 | . . 2 2 . 23 2 5 23 28 4 Allies Corrupted 3 | . . . . . 1 . . 1 1 . Allies Melted . | . . . . . . . . . . . Intel | -11 -10 -10 -9 -9 -9 -9 -7 -7 -7 -7 ------- Run | Yrd Mat Min Mat Sto Gar Rec Fac Gar Fac Gar Active Infowar (turns) 1470 | . . . . . . . 1470 . . . Sensors 1470 | . . . . . . . 1470 . . . Robot Analysis Total 6 | . . . . . . 3 1 . 2 . Derelict Logs Recovered 1 | . . 1 . . . . . . . . Drone Launches . | . . . . . . . . . . . Drone Recoveries . | . . . . . . . . . . . Exploration | -11 -10 -10 -9 -9 -9 -9 -7 -7 -7 -7 ------------- Run | Yrd Mat Min Mat Sto Gar Rec Fac Gar Fac Gar Turns Passed 13457 | 43 140 617 406 107 2659 1392 3024 3242 1355 472 Spaces Moved 6318 | 41 147 544 190 54 1170 773 1447 1332 472 148 Core 3 | 3 . . . . . . . . . . Treads 4633 | . . . 43 54 364 773 1447 1332 472 148 Legs 916 | . . . 110 . 806 . . . . . Wheels 766 | 38 147 544 37 . . . . . . . Hover . | . . . . . . . . . . . Flight . | . . . . . . . . . . . Fastest Speed 50 | 50 80 80 95 160 160 160 160 160 240 160 Average Speed 172 | 77 80 93 166 160 182 160 162 198 240 239 Slowest Speed 320 | 80 80 95 240 160 320 160 240 240 240 320 Overloaded Moves . | . . . . . . . . . . . Propulsion Burnouts . | . . . . . . . . . . . Robots Hopped . | . . . . . . . . . . . Potential Cave-ins 4 | . . . . . 4 . . . . . Cave-ins Triggered . | . . . . . . . . . . . Exploration Rate (%) 45 | 2 33 86 22 11 97 89 28 96 15 22 Regions Visited 10 Branch Regions 3 Pre-discovered Areas . | . . . . . . . . . . . Known Exits Taken 5 | . . . 1 1 . 1 1 . 1 . Unknown Exits Taken 3 | 1 1 1 . . . . . . . . Scrap Searched 1 | . . 1 . . . . . . . . Spaces Dug 2 | . . . . . . . 1 . 1 . Terrain Destroyed 52 | . 19 . 2 . 17 4 9 . 1 . Melee 1 | . . . . . . . . . 1 . Projectile 15 | . . . 2 . . 4 9 . . . AOE 36 | . 19 . . . 17 . . . . . Terrain Rammed 1 | . 1 . . . . . . . . . Walls Destroyed . | . . . . . . . . . . . Machines Disabled . | . . . . . . . . . . . Actions | -11 -10 -10 -9 -9 -9 -9 -7 -7 -7 -7 --------- Run | Yrd Mat Min Mat Sto Gar Rec Fac Gar Fac Gar Total 8319 | 48 162 614 236 65 1555 882 1991 1872 673 221 Wait 1127 | . 4 41 3 3 119 44 371 403 122 17 Move 6309 | 40 146 543 189 53 1169 772 1447 1330 472 148 Hop . | . . . . . . . . . . . Pick Up 94 | . 3 7 5 1 34 1 16 17 7 3 Fast Attach 46 | 7 1 . 7 1 5 . 13 6 3 3 Attach 50 | . . 1 . . 8 2 8 8 12 11 Detach 17 | . 1 . 1 . 2 . 3 5 5 . Swap 23 | . 1 4 3 . 4 . 4 3 3 1 Drop 70 | 1 1 . 6 1 37 . 7 14 1 2 Fire 410 | . 4 18 22 5 76 28 111 82 43 21 Melee 14 | . . . . . 3 . . 4 3 4 Ram 1 | . 1 . . . . . . . . . Kick . | . . . . . . . . . . . Crush 18 | . . . . . . . 11 . 2 5 Escape Stasis 36 | . . . . . 30 . . . . 6 Rewire 103 | . . . . . 68 35 . . . . Trap 1 | . . . . 1 . . . . . . Miscellaneous . | . . . . . . . . . . . Route ------- -11/Scrapyard -10/Materials -10/Mines (discovered 3 exits: *Mat x2 / [*Sub]) -9/Materials (discovered 3 exits: *Min / *Sto x2) -9/Storage -9/Garrison (discovered 3 exits: *Rec x3) -9/Recycling -7/Factory (discovered 2 exits: *Fac / Gar) -7/Garrison (discovered 3 exits: *Fac x3) -7/Factory (discovered 2 exits: *Fac / Gar) -7/Garrison History --------- Turn | Location | Event 13 | -11/Scrapyard | Discovered new exit (range 16) 44 | -11/Scrapyard | Entered Materials 154 | -10/Materials | Discovered new exit (range 9) 184 | -10/Materials | Entered Mines 294 | -10/Mines | Discovered new exit (range 10) 302 | -10/Mines | Build established: Mutant 328 | -10/Mines | Assisted by bots powering up and referring to "LRC-V3" 346 | -10/Mines | Found a hidden stash of uninstalled traps 346 | -10/Mines | Discovered new exit (range 15) 397 | -10/Mines | A weapon hastily lodged in a ceiling crevice suddenly fell to the ground 464 | -10/Mines | Discovered new exit (range 6) 715 | -10/Mines | Learned Materials garrison access intel 801 | -10/Mines | Entered Materials 801 | -9/Materials | Accompanied by 3 allies 801 | -9/Materials | Evolved 2 slots: Utility x2 821 | -9/Materials | Identified exit to Mines 821 | -9/Materials | Identified exit to Storage 897 | -9/Materials | Lost 3 allies 1207 | -9/Materials | Entered Storage 1282 | -9/Storage | Identified exit to Garrison 1314 | -9/Storage | Entered Garrison 1586 | -9/Garrison | Build established: Scavenger-Mutant 1680 | -9/Garrison | Triggered checkpoint 1708 | -9/Garrison | Garrison Relay disabled 1758 | -9/Garrison | Garrison Relay disabled 1850 | -9/Garrison | Installed Relay Interface Framework 1936 | -9/Garrison | Triggered checkpoint 2067 | -9/Garrison | Discovered new exit (range 10) 2100 | -9/Garrison | Triggered checkpoint 2142 | -9/Garrison | Garrison Relay disabled 2264 | -9/Garrison | Triggered checkpoint 2330 | -9/Garrison | Triggered checkpoint 2340 | -9/Garrison | Build established: Bothacker-Mutant 2408 | -9/Garrison | Garrison Relay disabled 2495 | -9/Garrison | Discovered new exit (range 9) 3220 | -9/Garrison | Rescued AZ-K3N 3309 | -9/Garrison | Murdered AZ-K3N 3333 | -9/Garrison | Found Corrupted Exp. Remote Datajack 3416 | -9/Garrison | Found Corrupted Adv. Powered Armor 3640 | -9/Garrison | Discovered new exit (range 10) 3697 | -9/Garrison | Discovered new exit (range 64) 3697 | -9/Garrison | Discovered new exit (range 6) 3697 | -9/Garrison | Discovered new exit (range 50) 3724 | -9/Garrison | Garrison Relay disabled 3819 | -9/Garrison | Identified exit to Recycling 3973 | -9/Garrison | Entered Recycling 3973 | -9/Recycling | Accompanied by 3 allies 4527 | -9/Recycling | Discovered new exit (range 16) 5057 | -9/Recycling | Core integrity fell below 50% 5057 | -9/Recycling | System corruption reached 10% 5283 | -9/Recycling | Identified exit to Factory 5365 | -9/Recycling | Entered Factory 5365 | -7/Factory | Accompanied by 5 allies 5365 | -7/Factory | Evolved 4 slots: Power x1, Utility x3 6321 | -7/Factory | Discovered new exit (range 11) 6340 | -7/Factory | Identified exit to Factory 6846 | -7/Factory | Cargo convoy interrupted 7058 | -7/Factory | P-70 Sage assimilated allied Savior 2a 7105 | -7/Factory | System corruption reached 10% 8389 | -7/Factory | Identified exit to Garrison 8389 | -7/Factory | Entered Garrison 8389 | -7/Garrison | Accompanied by 1 ally 8681 | -7/Garrison | Spotted B-75 Beast 8684 | -7/Garrison | Assimilated Beast 4a with formatsys_high 8990 | -7/Garrison | Lost 3 allies 9050 | -7/Garrison | Build established: Scavenger-Mutant 9090 | -7/Garrison | Garrison Relay disabled 9165 | -7/Garrison | Triggered checkpoint 9363 | -7/Garrison | Triggered checkpoint 9449 | -7/Garrison | Garrison Relay disabled 9495 | -7/Garrison | Discovered new exit (range 9) 9738 | -7/Garrison | Rescued a captive Derelict 9754 | -7/Garrison | Build established: Bothacker-Mutant 9793 | -7/Garrison | Discovered new exit (range 11) 9811 | -7/Garrison | Garrison Relay disabled 9825 | -7/Garrison | Lost 5 allies 9996 | -7/Garrison | Identified exit to Factory 10379 | -7/Garrison | Triggered checkpoint 10460 | -7/Garrison | Expanded RIF knowledge: Coupler Efficiency 10507 | -7/Garrison | Triggered checkpoint 10525 | -7/Garrison | Found embedded Infiltrators 10541 | -7/Garrison | Garrison Relay disabled 10898 | -7/Garrison | Discovered exit to Factory (range 12) 11631 | -7/Garrison | Entered Factory 11631 | -7/Factory | Accompanied by 4 allies 12431 | -7/Factory | First assault squad dispatched 12489 | -7/Factory | Discovered exit to Factory (range 15) 12879 | -7/Factory | Garrison activated, responded to threat 12905 | -7/Factory | Lost 3 parts (1u2w) 12960 | -7/Factory | Lost 10 allies 12980 | -7/Factory | Core integrity fell below 50% 12986 | -7/Factory | Identified exit to Garrison 12986 | -7/Factory | Entered Garrison 12986 | -7/Garrison | Accompanied by 1 ally 13022 | -7/Garrison | Expanded RIF knowledge: Coupler Efficiency 13144 | -7/Garrison | Triggered checkpoint 13181 | -7/Garrison | Garrison Relay disabled 13344 | -7/Garrison | Triggered checkpoint 13346 | -7/Garrison | Triggered checkpoint 13367 | -7/Garrison | System corruption reached 30% 13410 | -7/Garrison | Core integrity fell below 20% 13458 | -7/Garrison | Destroyed by P-60 Hacker with Shock Rifle Last Messages --------------- 13433_ System corrupted: Enh. Armored Medium Treads rejected. 13434_ P-60 Hacker resets P-60 Hacker, system corruption cleaned. 13435_ Acquired Enh. Armored Medium Treads. 13436_ System corrupted: Gatling Laser failed to cycle. 13437_ B-48 Gladiator heat short circuits Lgt. Treads. 13437_ Imp. Deuterium Engine destroyed. 13437_ System corrupted by crushing effect (+5). 13438_ P-60 Hacker resets P-60 Hacker, system corruption cleaned. 13438_ B-48 Gladiator destroyed. 13441_ P-60 Hacker resets P-60 Hacker, system corruption cleaned. 13443_ Imp. Light Armor Plating destroyed. 13445_ Dropped Huge Storage Unit. 13451_ System corrupted: Matter fused (-8). 13457_ Adv. Powered Armor destroyed. Map ----- +----------------------------------------------------+ | ?????????????????????????????????????????????????? | | ?????????????????????????????????????????????????? | | ?????????????????????????????????????????????????? | | ?????????????????????????????????????????????????? | | ?????????????????????????????????????????????????? | | ?????????????????????????????????????????????????? | | ?????????????????????????????????????????????????? | | ?????????????????????????????????????????????????? | | ?????????????????????????????????????????????????? | | ?????????????????????????????????????????????????? | | ?????????????????????????????????????????????????? | | ????????????????????# ??????????????????????????? | | ????????????????????# ??????????????????????????? | | ????????????????????# ??????????????????????????? | | ????????????????????# ??????????????????????????? | | ????????????????????# ??????????????????????????? | | ??????????? ##""""## ##????????????????????????? | | ??????????? #????????????????????????? | | ???????????? ? #????????????????????????? | | ????????????? ? #????????????????????????? | | ?????????# ??# % ?# #????????????????????????? | | ?????????? ## = ## ###??????????????????????? | | ?????????" #??????????????????????? | | ?????????" #??????????????????????? | | ?????????" p #??????????????????????? | | ?????????" *%p@#??????????????????????? | | ??????????????# #;!ps###??????????????????????? | | ?????????# ## #!!!%############?????????????? | | ??????? !%% ^ #?????????????? | | ??????? !!%/[ #?????????????? | | ????????## [=%! ^ #?????????????? | | ?????????## ## ############# #?????????????? | | ??????????#???# ????????????# #?????????????? | | ??????????????####?????????????# ^#?????????????? | | ???????????????????????????????# #?????????????? | | ???????????????????????????????# #?????????????? | | ???????????????????????????????# #?????????????? | | ???????????????????????????????# #?????????????? | | ???????????????????????????????# #?????????????? | | ???????????????????????????????# #?????????????? | | ???????????????????????????????# #?????????????? | | ???????????????????????????????# #?????????????? | | ???????????????????????????????# #?????????????? | | ???????????????????????????????# #?????????????? | | ???????????????????????????????# #?????????????? | | ???????????????????????????????# #?????????????? | | ???????????????????????????????# #?????????????? | | ???????????????????????????????# #?????????????? | | ???????????????????????????????# ############### | | ???????????????????????????????# ! | +----------------------------------------------------+ Best States ------------- Heat Dissipation 61 Coolant Potential 65 Energy Generation 30 Energy Capacity 1080 Matter Stores 300 Matter Capacity 300 Sight Range 16 Robot Scan Range 15 Terrain Scan Density 10 Armor Coverage 550 Phase Shifting 15 Evasion (%) 55 Recoil Reduction 2 Particle Charging 20 Salvage Targeting 2 Defensive Hacking 10 Relay Coupler Types 7 Relay Coupler Value 100 Item Schematics ----------------- None Robot Schematics ------------------ None Fabricated ------------ Nothing Repaired ---------- Nothing Studied --------- None Alien Tech Used ----------------- None Achievements -------------- Collateral Damage Versatile Challenges ------------ None Game ------ Seed GyrokineticGhostStabilizer Manual? 0 Play Time 01:29:26 Cumulative 113.1 hours Start 2026.09.14 @ 05:34:21 End 2026.09.14 @ 15:46:36 Sessions 3 Manual Loads 0 Difficulty Rogue Special Mode None Game No. 132 Rogue 132 Adventurer 0 Explorer 0 Win Type - Total 0 Types 0/0/0/0/0/0/0/0/0/0 Lore% 45 Gallery% 52 Achievement% 42 Wizard Run 0 Options --------- Layout 1 ASCII 0 Keyboard 0 Movement Mouse Keybinds 0 Fullscreen 2 Font 24/Smallcaps Map View 50x35 Zoom Use 0% Tactical HUD 1 Map Filters NONE Filters NONE Steam 1 RUN: 202d5dc3-56b5-4023-a10d-a4d3e466b538